lending/lending_fUSD_20240816
["ID","MTS","AMOUNT","RATE_DAILY","PERIOD"]
[335029111,1723775286774,151.39544263,0.00025,60]
[335029120,1723775360893,-3549.09136472,0.0001,2]
[335029123,1723775361563,1554.69,9.952e-05,2]
[335029129,1723775407106,569.92,9.905e-05,2]
[335029147,1723775432321,-2011.84276721,0.0001,2]
[335029148,1723775432332,-300.0,0.00010025,2]
[335029149,1723775432342,-393.64776632,0.00010471,2]
[335029150,1723775432358,-46.42223368,0.00010471,2]
[335029151,1723775432368,-4400.0,0.000105,2]
[335029152,1723775432379,-2367.41428792,0.000105,2]
[335029153,1723775432389,-2502.58566001,0.00010505,2]
[335029154,1723775432399,-150.0,0.00010565,2]
[335029155,1723775432412,-1257.95663297,0.00010566,2]
[335029156,1723775432422,-1298.06114648,0.00010566,2]
[335029157,1723775432432,-3034.08822307,0.00010566,2]
[335029158,1723775432442,-2345.69810517,0.00010566,2]
[335029159,1723775432451,-3591.98396655,0.00010566,2]
[335029160,1723775432461,-1500.0,0.00010566,2]
[335029161,1723775432470,-271.42,0.00010706,2]
[335029162,1723775432480,-841.78,0.00010713,2]
[335029163,1723775432491,-174.98,0.00010774,2]
[335029164,1723775432501,-490.99,0.00010774,2]
[335029165,1723775432510,-892.62032859,0.00010799,2]
[335029166,1723775432520,-500.0,0.000108,2]
[335029167,1723775432529,-1000.0,0.000108,2]
[335029168,1723775432539,-3052.91738622,0.000108,2]
[335029169,1723775432548,-4704.15184783,0.000108,2]
[335029170,1723775432557,-1063.64,0.000108,2]
[335029171,1723775432566,-844.92,0.000108,2]
[335029172,1723775432575,-536.44870464,0.00010861,2]
[335029173,1723775432584,-949.01086108,0.00010861,2]
[335029174,1723775432593,-536.44870464,0.00010861,2]
[335029175,1723775432605,-600.79792946,0.00010862,2]
[335029176,1723775432614,-156.66882077,0.00010862,2]
[335029177,1723775432623,-155.29405767,0.00010862,2]
[335029178,1723775432632,-442.05614746,0.00010862,2]
[335029179,1723775432641,-297.4607519,0.00010862,2]
[335029180,1723775432651,-649.92257342,0.00010862,2]
[335029181,1723775432660,-381.10198317,0.00010862,2]
[335029182,1723775432669,-3699.68409708,0.0001088,2]
[335029183,1723775432678,-155.22576628,0.00010888,2]
[335029184,1723775432688,-185.48188221,0.00010888,2]
[335029185,1723775432697,-201.02011581,0.00010888,2]
[335029186,1723775432706,-179.17215777,0.00010888,2]
[335029187,1723775432715,-196.66616766,0.00010888,2]
[335029188,1723775432725,-155.11329335,0.00010888,2]
[335029189,1723775432734,-365.42577775,0.00010888,2]
[335029190,1723775432743,-155.0,0.00010888,2]
[335029191,1723775432755,-155.24518805,0.00010888,2]
[335029192,1723775432766,-432.5166998,0.00010888,2]
[335029193,1723775432777,-188.09800089,0.00010888,2]
[335029194,1723775432786,-289.59065945,0.0001089,2]
[335029195,1723775432796,-160.94895313,0.0001089,2]
[335029196,1723775432806,-179.4623719,0.0001089,2]
[335029197,1723775432815,-236.36319912,0.0001089,2]
[335029198,1723775432826,-155.22979046,0.0001089,2]
[335029199,1723775432836,-159.93368464,0.0001089,2]
[335029200,1723775432846,-319.38158331,0.0001089,2]
[335029201,1723775432857,-155.19839892,0.0001089,2]
[335029202,1723775432868,-203.81495302,0.0001089,2]
[335029203,1723775432877,-297.9829,0.0001089,2]
[335029204,1723775432887,-161.508,0.00010891,2]
[335029205,1723775432897,-446.0,0.00010891,2]
[335029206,1723775432907,-811.0,0.00010891,2]
[335029207,1723775432917,-155.17508205,0.00010899,2]
[335029208,1723775432926,-495.06758146,0.00010899,2]
[335029209,1723775432940,-3925.44196721,0.00010899,2]
[335029210,1723775432951,-155.21801074,0.00010899,2]
[335029211,1723775432962,-975.8903,0.000109,2]
[335029212,1723775432972,-496.2913,0.000109,2]
[335029213,1723775432983,-671.994,0.000109,2]
[335029214,1723775432993,-749.2536,0.000109,2]
[335029215,1723775433002,-623.6874,0.000109,2]
[335029216,1723775433012,-3236.6523,0.000109,2]
[335029217,1723775433021,-5533.2639,0.000109,2]
[335029218,1723775433031,-177.7876,0.000109,2]
[335029219,1723775433040,-3520.2739,0.000109,2]
[335029220,1723775433050,-1268.0272,0.000109,2]
[335029221,1723775433059,-421.13,0.000109,2]
[335029222,1723775433069,-834.94,0.000109,2]
[335029223,1723775433079,-436.3618,0.000109,2]
[335029224,1723775433088,-426.55,0.000109,2]
[335029225,1723775433100,-776.91,0.000109,2]
[335029226,1723775433109,-426.55,0.000109,2]
[335029227,1723775433119,-151.13,0.000109,2]
[335029228,1723775433128,-426.55,0.000109,2]
[335029229,1723775433137,-7500.0,0.000109,2]
[335029230,1723775433147,-531.19,0.000109,2]
[335029231,1723775433156,-687.65318458,0.000109,2]
[335029232,1723775433165,-531.19,0.000109,2]
[335029233,1723775433175,-835.58,0.000109,2]
[335029234,1723775433184,-250.0,0.00010959,2]
[335029235,1723775433193,-557.99776162,0.00010989,2]
[335029236,1723775433203,-84617.5693369,0.0001099,3]
[335029237,1723775433212,-255.21992957,0.00010993,2]
[335029238,1723775433221,-466.39932647,0.00010993,2]
[335029239,1723775433230,-23293.20216981,0.00010997,2]
[335029240,1723775433295,-4803.28724752,0.00010997,2]
[335029241,1723775433307,-1456.79055091,0.00010997,2]
[335029251,1723775437967,-10555.17637901,0.00010009,2]
[335029252,1723775437977,-3945.22948832,0.00010566,2]
[335029253,1723775437987,-1074.78314637,0.00010888,2]
[335029254,1723775437997,-449.778,0.00010891,2]
[335029255,1723775438007,-30263.08948511,0.00010997,2]
[335029256,1723775438019,-12526.35179625,0.00010997,2]
[335029257,1723775438029,-258.80252209,0.00010999,2]
[335029258,1723775438038,-128556.81561623,0.00011,2]
[335029259,1723775438048,-238514.72919903,0.00011,2]
[335029260,1723775438060,-663.2,0.00011,2]
[335029261,1723775438116,-285.763033,0.00011,2]
[335029262,1723775438127,-700.54689836,0.00011,2]
[335029263,1723775438139,-18529.79371683,0.00011,2]
[335029264,1723775438150,-642.14999999,0.00011,2]
[335029265,1723775438162,-1800.98449052,0.00011,2]
[335029266,1723775438266,-429.25729737,0.00011,2]
[335029267,1723775438277,-364.0,0.00011,2]
[335029268,1723775438288,-470.83343635,0.00011,2]
[335029269,1723775438300,-2510.72,0.00011,2]
[335029270,1723775438311,-6726.37280016,0.00011,2]
[335029271,1723775438323,-2773866.98210691,0.00011,2]
[335029273,1723775438465,-72851.66355887,0.00011,2]
[335029275,1723775438476,-140533.99345,0.00011,2]
[335029277,1723775438488,-380.0,0.00011,2]
[335029279,1723775438501,-5041.6,0.00011,2]
[335029310,1723775442253,-1704.46021913,0.00011,2]
[335029311,1723775442264,-515.561666,0.00011,2]
[335029312,1723775442276,-84567.13992091,0.00011,2]
[335029313,1723775442287,-1910.97960428,0.00011,2]
[335029314,1723775442298,-28500.0,0.00011,2]
[335029315,1723775442309,-65220.33347668,0.00011,2]
[335029316,1723775442449,-1605.85700381,0.00011,2]
[335029317,1723775442460,-706.04,0.00011,2]
[335029318,1723775442471,-111855.72390297,0.00011,2]
[335029319,1723775442482,-703.655,0.00011,2]
[335029320,1723775442495,-366.03285977,0.00011,2]
[335029321,1723775442507,-8397.84864887,0.00011,2]
[335029327,1723775443709,-5000.00000003,0.00011,2]
[335029333,1723775443726,-305.77070615,0.00011,2]
[335029337,1723775443738,-415.1,0.00011,2]
[335029342,1723775443750,-8821.75096878,0.00011,2]
[335029346,1723775443775,-60801.22533366,0.00011,2]
[335029348,1723775443787,-397.63098387,0.00011,2]
[335029350,1723775443798,-865830.38098504,0.00011,2]
[335029352,1723775445325,-1732.88242047,0.00011,2]
[335029353,1723775445336,-394.58101345,0.00011,2]
[335029354,1723775445347,-5626.523833,0.00011,2]
[335029355,1723775445358,-1388.82081271,0.00011,2]
[335029356,1723775445369,-707.3898016,0.00011,2]
[335029357,1723775445380,-348.482,0.00011,2]
[335029358,1723775445391,-640.224,0.00011,2]
[335029359,1723775445403,-296.13443335,0.00011,2]
[335029360,1723775445414,-430.65367495,0.00011,2]
[335029361,1723775445426,-575.67008807,0.00011,2]
[335029362,1723775445439,-784.38,0.00011,2]
[335029363,1723775445451,-3079.99995,0.00011,2]
[335029364,1723775445463,-2126.874996,0.00011,2]
[335029365,1723775445474,-12175.6,0.00011,2]
[335029366,1723775445485,-3160.1831115,0.00011,2]
[335029367,1723775445497,-592.3999995,0.00011,2]
[335029368,1723775445510,-604.07802196,0.00011,2]
[335029369,1723775445522,-2421.6,0.00011,2]
[335029370,1723775445534,-25007.0,0.00011,2]
[335029371,1723775445545,-7707.22865925,0.00011,2]
[335029374,1723775447355,-3765.69953211,0.00011,2]
[335029375,1723775447366,-6060.8,0.00011,2]
[335029376,1723775447377,-748.82902201,0.00011,2]
[335029377,1723775447388,-275.5687984,0.00011,2]
[335029378,1723775447527,-277.9220328,0.00011,2]
[335029379,1723775447538,-528.6758168,0.00011,2]
[335029380,1723775447550,-3005.7595,0.00011,2]
[335029381,1723775447561,-970.74420354,0.00011,2]
[335029382,1723775447572,-353.68141749,0.00011,2]
[335029383,1723775447627,-4017.62324958,0.00011,2]
[335029384,1723775447639,-18489.299042,0.00011,2]
[335029385,1723775447650,-2374.65323024,0.00011,2]
[335029386,1723775447665,-605.67764587,0.00011,2]
[335029387,1723775447677,-336.21587999,0.00011,2]
[335029388,1723775447717,-335.60142443,0.00011,2]
[335029389,1723775447729,-62003.14113327,0.00011,2]
[335029390,1723775447740,-9031.66202196,0.00011,2]
[335029391,1723775447751,-81241.86709412,0.00011,2]
[335029392,1723775447762,-473.16872116,0.00011,2]
[335029393,1723775447773,-573.43013765,0.00011,2]
[335029394,1723775447785,-500.0,0.00011,2]
[335029395,1723775447796,-3628.94425174,0.00011,2]
[335029396,1723775447808,-1613.48867776,0.00011,2]
[335029696,1723775610109,500.0,0.00024931,60]
[335029706,1723775750194,429.65,8.399e-05,2]
[335029708,1723776019682,961.67,9.929e-05,2]
[335029709,1723776060536,300.0,9.998e-05,2]
[335029710,1723776061345,300.0,9.998e-05,2]
[335029711,1723776089339,250.0,9.939e-05,2]
[335029712,1723776091632,2342.25040251,9.988e-05,2]
[335029713,1723776095840,3037.84758826,9.988e-05,2]
[335029714,1723776111789,217.14,9.922e-05,2]
[335029715,1723776125285,2507.16805053,9.988e-05,2]
[335029716,1723776133476,155.85301679,9.988e-05,2]
[335029717,1723776159514,371.0,0.00025,60]
[335029718,1723776176850,493.63885733,9.988e-05,2]
[335029719,1723776284371,310.93288431,0.00024499,120]
[335029720,1723776302851,408.16,8.219e-05,2]
[335029723,1723776355886,259.11073693,0.00012106,120]
[335029724,1723776379300,23890.0,9.875e-05,2]
[335029725,1723776410881,259.11073693,9.962e-05,60]
[335029746,1723776470883,155.0,0.00012075,60]
[335029747,1723776480619,480.83,9.874e-05,2]
[335029748,1723776532122,1000.0,9.892e-05,2]
[335029749,1723776532162,1000.0,0.00024931,60]
[335029750,1723776537228,893.1069524,9.988e-05,2]
[335029757,1723776587839,155.0,0.00012106,60]
[335029787,1723776632949,-270.60181535,9.999e-05,2]
[335029788,1723776632958,-550.0,0.0001,2]
[335029789,1723776632968,-211.05406018,0.0001,2]
[335029790,1723776632978,-571.11326636,0.0001,2]
[335029791,1723776632989,-69.6979558,0.0001,2]
[335029792,1723776632998,-341.34077296,0.00010009,2]
[335029793,1723776633007,-155.4703365,0.00010009,2]
[335029794,1723776633016,-664.27900866,0.00010009,2]
[335029795,1723776633150,-1049.48036117,0.00010009,2]
[335029796,1723776633159,-26.47459073,0.00010025,2]
[335029797,1723776633172,-268.07010932,0.00010025,2]
[335029798,1723776633183,-5.45529995,0.00010025,2]
[335029799,1723776633193,-649.9821502,0.00010026,2]
[335029800,1723776633202,-546.9938583,0.00010026,2]
[335029801,1723776633212,-164.51,0.00010049,2]
[335029802,1723776633223,-11.35446557,0.00010438,2]
[335029803,1723776633235,-138.64553443,0.00010438,2]
[335029804,1723776633244,-138.86327099,0.00010472,2]
[335029805,1723776633256,-269.29672901,0.00010472,2]
[335029806,1723776633266,-82.66327099,0.00010567,2]
[335029807,1723776633278,-100.19672901,0.00010567,2]
[335029808,1723776633288,-499.99,0.00010663,2]
[335029809,1723776633298,-1500.0,0.00010699,2]
[335029810,1723776633307,-628.88487625,0.00010699,2]
[335029811,1723776633317,-407.37,0.000107,2]
[335029812,1723776633327,-358.32791977,0.000107,2]
[335029813,1723776633339,-68.22208023,0.000107,2]
[335029814,1723776633348,-553.77791977,0.000107,2]
[335029815,1723776633360,-281.80208023,0.000107,2]
[335029816,1723776633369,-139.75631901,0.000107,2]
[335029817,1723776633381,-10.24368099,0.000107,2]
[335029818,1723776633391,-150.72,0.000107,2]
[335029819,1723776633400,-770.22,0.000107,2]
[335029820,1723776633410,-586.24361366,0.000107,2]
[335029821,1723776633422,-114.25638634,0.000107,2]
[335029822,1723776633431,-150.0,0.00010799,2]
[335029823,1723776633441,-294.00364585,0.000108,2]
[335029824,1723776633453,-237.18635415,0.000108,2]
[335029825,1723776633463,-150.0,0.000108,2]
[335029826,1723776633475,-421.13,0.000108,2]
[335029827,1723776633484,-628.83,0.000108,2]
[335029828,1723776633494,-1655.44,0.000108,2]
[335029829,1723776633504,-1782.81,0.000108,2]
[335029830,1723776633514,-163.92323731,0.00010852,2]
[335029831,1723776633523,-4424.44809902,0.0001088,2]
[335029832,1723776633533,-166.66694184,0.00010888,2]
[335029833,1723776633543,-159.87105252,0.00010889,2]
[335029834,1723776633553,-155.0,0.0001089,2]
[335029835,1723776633563,-9262.23985839,0.0001089,2]
[335029836,1723776633575,-425.30016265,0.0001089,2]
[335029837,1723776633587,-3955.96712328,0.0001089,2]
[335029838,1723776633630,-939.82724979,0.0001089,2]
[335029839,1723776633644,-1879.8522855,0.0001089,2]
[335029843,1723776638450,-1141.28501544,0.00010713,2]
[335029844,1723776638460,-155.97564536,0.00010799,2]
[335029845,1723776638470,-902.77284846,0.0001089,2]
[335029846,1723776638482,-1697.09681295,0.0001089,2]
[335029847,1723776638493,-34677.686,0.0001089,2]
[335029848,1723776638505,-689.76312722,0.0001089,2]
[335029849,1723776638517,-1553.4252,0.0001089,2]
[335029850,1723776638528,-561.82928208,0.0001089,2]
[335029851,1723776638540,-423.10202108,0.0001089,2]
[335029852,1723776638551,-582.24356216,0.0001089,2]
[335029853,1723776638563,-351.92,0.0001089,2]
[335029854,1723776638574,-23360.27842557,0.0001089,2]
[335029856,1723776638585,-915.20688005,0.0001089,2]
[335029859,1723776638600,-1384.68576082,0.0001089,2]
[335029861,1723776638610,-1136.942,0.0001089,2]
[335029863,1723776638619,-420.64850572,0.00010899,2]
[335029865,1723776638629,-420.64850572,0.00010899,2]
[335029867,1723776638639,-420.64850572,0.00010899,2]
[335029869,1723776638649,-420.64850572,0.00010899,2]
[335029871,1723776638659,-420.64850572,0.00010899,2]
[335029873,1723776638668,-420.64850572,0.00010899,2]
[335029875,1723776638678,-420.64850572,0.00010899,2]
[335029877,1723776638688,-420.64850572,0.00010899,2]
[335029879,1723776638698,-420.64850572,0.00010899,2]
[335029880,1723776638708,-1015.75781763,0.00010899,2]
[335029881,1723776638718,-287.0583,0.000109,2]
[335029882,1723776638728,-4746.2377,0.000109,2]
[335029883,1723776638738,-12501.421,0.000109,2]
[335029884,1723776638748,-247.9946,0.000109,2]
[335029885,1723776638758,-718.3116,0.000109,2]
[335029886,1723776638768,-420.64850572,0.000109,2]
[335029887,1723776638777,-7500.0,0.000109,2]
[335029888,1723776638791,-214.36028434,0.000109,2]
[335029889,1723776638801,-3000.0,0.0001094,2]
[335029890,1723776638810,-645.65965171,0.00010949,2]
[335029891,1723776638820,-250.0,0.00010959,2]
[335029892,1723776638831,-1257.50707975,0.00010989,2]
[335029893,1723776638841,-2842.1612565,0.00010989,2]
[335029894,1723776638851,-10535.88888206,0.00010993,2]
[335029895,1723776638860,-3882.16223642,0.00010993,2]
[335029896,1723776638871,-162.34779276,0.00010997,2]
[335029897,1723776638881,-183.75984862,0.00010997,2]
[335029898,1723776638890,-235.27502008,0.00010999,2]
[335029899,1723776638900,-190.83819847,0.00010999,2]
[335029900,1723776638909,-65173.21477108,0.00011,2]
[335029901,1723776638957,-66577.28961472,0.00011,2]
[335029902,1723776638967,-627019.22850327,0.00011,2]
[335029903,1723776638978,-5459152.28713067,0.00011,2]
[335029904,1723776638989,-2510.72,0.00011,2]
[335029905,1723776638999,-11775.33259882,0.00011,2]
[335029906,1723776639011,-744.74833634,0.00011,2]
[335029907,1723776639022,-3033.64609877,0.00011,2]
[335029908,1723776639036,-4863.41013745,0.00011,2]
[335029909,1723776639047,-49423.47812475,0.00011,2]
[335029911,1723776640016,-218.36813021,0.0001089,2]
[335029913,1723776640025,-669.22983525,0.00011,2]
[335029915,1723776640036,-1610.53421101,0.00011,2]
[335029917,1723776640047,-296.33106017,0.00011,2]
[335029919,1723776640058,-4010.853084,0.00011,2]
[335029920,1723776640069,-4832.22556236,0.00011,2]
[335029921,1723776640081,-9920.5,0.00011,2]
[335029922,1723776640093,-91799.23822227,0.00011,2]
[335029923,1723776640104,-83111.61462018,0.00011,2]
[335029924,1723776640115,-2937.99234466,0.00011,2]
[335029925,1723776640126,-312.3160075,0.00011,2]
[335029926,1723776640255,-3472.6232016,0.00011,2]
[335029927,1723776640266,-492.0,0.00011,2]
[335029928,1723776640278,-3255.0,0.00011,2]
[335029929,1723776640289,-533.1,0.00011,2]
[335029930,1723776640300,-358.15287058,0.00011,2]
[335029931,1723776640311,-819.68910007,0.00011,2]
[335029932,1723776640322,-179240.95075078,0.00011,2]
[335029933,1723776640333,-475.21517826,0.00011,2]
[335029934,1723776640344,-865.43927189,0.00011,2]
[335029935,1723776640355,-4355.31238879,0.00011,2]
[335029936,1723776640544,-256.89893274,0.00011,2]
[335029937,1723776640555,-3200.6762738,0.00011,2]
[335029938,1723776640565,-588.39048859,0.00011,2]
[335029939,1723776640576,-3048.32772882,0.00011,2]
[335029940,1723776640587,-25549.94544281,0.00011,2]
[335029941,1723776640597,-670.7,0.00011,2]
[335029942,1723776640608,-3173.08778374,0.00011,2]
[335029943,1723776640619,-1161.14311459,0.00011,2]
[335029944,1723776640630,-524.55601985,0.00011,2]
[335029953,1723776643680,-735.915,0.00011,2]
[335029957,1723776643692,-875.61958903,0.00011,2]
[335029958,1723776643703,-4544.689393,0.00011,2]
[335029959,1723776643714,-3702.77784588,0.00011,2]
[335029960,1723776643727,-432.0,0.00011,2]
[335029961,1723776643738,-17372.54439704,0.00011,2]
[335029962,1723776643749,-1310.89655929,0.00011,2]
[335029963,1723776643760,-2833.13889606,0.00011,2]
[335029964,1723776645277,-332.05209099,0.00011,2]
[335029965,1723776645289,-2609.74574209,0.00011,2]
[335029966,1723776645301,-522.71907331,0.00011,2]
[335029967,1723776645312,-297.95376087,0.00011,2]
[335029968,1723776645323,-293.30521316,0.00011,2]
[335029969,1723776645335,-5557.37127244,0.00011,2]
[335029974,1723776646606,-653.0,0.00011,2]
[335029975,1723776646620,-8106.89999994,0.00011,2]
[335029976,1723776646633,-374.8274,0.00011,2]
[335029981,1723776669050,151.081611,0.00025,60]
[335029984,1723776843357,392.54,8.845e-05,2]
[335029987,1723777145531,155.0,0.00024499,60]
[335029989,1723777235350,155.0,0.00024499,60]
[335029990,1723777305578,372.91,8.23e-05,2]
[335029992,1723777334442,155.0,0.00024499,60]
[335029993,1723777378833,155.0,9.976e-05,60]
[335029994,1723777406950,155.0,9.988e-05,2]
[335029995,1723777415868,155.0,0.00012092,60]
[335029996,1723777448796,1000.0,0.00024931,60]
[335029997,1723777485892,210.55368464,0.00014657,60]
[335029998,1723777511971,1108.301799,9.948e-05,2]
[335030000,1723777535248,1845.34711469,9.988e-05,2]
[335030002,1723777591825,2845.30747661,9.988e-05,2]
[335030003,1723777605143,205.14181419,9.988e-05,2]
[335030010,1723777697820,250.0,9.97e-05,2]
[335030021,1723777785402,155.09177178,9.988e-05,2]
[335030022,1723777797526,893.1069524,9.988e-05,2]
[335030030,1723777832174,-550.0,0.0001,2]
[335030031,1723777832184,-200.0,0.00010023,2]
[335030032,1723777832193,-182.86,0.0001003,2]
[335030033,1723777832203,-378.5,0.00010081,2]
[335030035,1723777832213,-208.44,0.00010141,2]
[335030037,1723777832223,-3402.75050161,0.00010141,2]
[335030039,1723777832233,-800.0,0.00010191,2]
[335030042,1723777832243,-372.91,0.00010493,2]
[335030044,1723777832252,-150.0,0.00010655,2]
[335030048,1723777832262,-2354.11,0.00010655,2]
[335030050,1723777832271,-693.09,0.00010656,2]
[335030053,1723777832281,-225.06857538,0.00010721,2]
[335030056,1723777832290,-9964.14814735,0.00010852,2]
[335030059,1723777832299,-687.2862954,0.00010862,2]
[335030061,1723777832309,-628.88487625,0.00010862,2]
[335030063,1723777832319,-1672.2646,0.00010879,2]
[335030065,1723777832328,-628.88487625,0.00010888,2]
[335030067,1723777832338,-818.326,0.00010893,2]
[335030069,1723777832347,-4425.262,0.00010899,2]
[335030070,1723777832357,-760.179,0.00010899,2]
[335030071,1723777832367,-1078.56,0.00010899,2]
[335030072,1723777832376,-1588.0031,0.000109,2]
[335030073,1723777832385,-741.6667,0.000109,2]
[335030074,1723777832400,-15050.2465,0.000109,2]
[335030075,1723777832409,-14653.6761,0.000109,2]
[335030076,1723777832419,-1310.4205,0.000109,2]
[335030077,1723777832429,-825.9845,0.000109,2]
[335030078,1723777832439,-294.87608505,0.000109,2]
[335030079,1723777832448,-511.72345297,0.000109,2]
[335030080,1723777832457,-250.0,0.00010959,2]
[335030081,1723777832465,-1300.59773488,0.00010989,2]
[335030082,1723777832475,-2248.47167659,0.00010989,2]
[335030083,1723777832484,-427.77276379,0.00010999,2]
[335030084,1723777832493,-125524.70211293,0.00011,2]
[335030085,1723777832505,-2485.24413139,0.00011,2]
[335030086,1723777832516,-658.96344261,0.00011,2]
[335030087,1723777832695,-11273.86824554,0.00011,2]
[335030088,1723777832707,-451.1482852,0.00011,2]
[335030089,1723777832720,-3025.514,0.00011,2]
[335030090,1723777832732,-5923.23978873,0.00011,2]
[335030091,1723777832743,-264.63989011,0.00011,2]
[335030092,1723777832754,-599.46000008,0.00011,2]
[335030093,1723777832765,-4473.10212446,0.00011,2]
[335030094,1723777832905,-724.24516566,0.00011,2]
[335030095,1723777838805,-687.2862954,0.00010861,2]
[335030096,1723777838815,-554.39208496,0.00011,2]
[335030097,1723777838827,-103352.26825956,0.00011,2]
[335030098,1723777838837,-1188826.81359116,0.00011,2]
[335030099,1723777838846,-4235772.82219114,0.00011,2]
[335030100,1723777838855,-1506417.58619353,0.00011,2]
[335030101,1723777838867,-7596.73680442,0.00011,2]
[335030104,1723777840446,-2036.93979992,0.00011,2]
[335030105,1723777840691,-57907.48658507,0.00011,2]
[335030136,1723777887265,335.61,9.749e-05,2]
[335030139,1723778297703,290.28,9.982e-05,2]
[335030140,1723778335672,250.0,9.962e-05,2]
[335030141,1723778343660,1500.0,0.00024931,60]
[335030142,1723778445039,890.64228004,0.00025,60]
[335030143,1723778455959,331.43,8.219e-05,2]
[335030144,1723778532826,155.0830415,9.962e-05,2]
[335030145,1723778741078,290.3,9.904e-05,2]
[335030146,1723778749844,160.0,9.911e-05,2]
[335030152,1723778777505,189.25,9.909e-05,2]
[335030153,1723778805126,250.0,9.913e-05,2]
[335030155,1723778935938,155.40898959,9.988e-05,2]
[335030159,1723778950118,650.79311621,9.988e-05,2]
[335030160,1723778968327,155.2748273,9.988e-05,2]
[335030169,1723779038653,-892.55006396,9.999e-05,2]
[335030170,1723779038663,-3162.35140455,0.00010009,2]
[335030171,1723779038672,-840.0,0.00010157,2]
[335030172,1723779038682,-365.87872335,0.00010471,2]
[335030173,1723779038691,-331.43,0.00010472,2]
[335030174,1723779038701,-2608.09557074,0.00010713,2]
[335030175,1723779038711,-150.0,0.0001072,2]
[335030176,1723779038720,-1500.0,0.00010785,2]
[335030177,1723779038730,-150.64375489,0.00010842,2]
[335030178,1723779038741,-17.78674222,0.00010842,2]
[335030179,1723779038751,-29752.49,0.00010852,2]
[335030180,1723779038760,-299.99,0.00010852,2]
[335030181,1723779038770,-499.99,0.00010852,2]
[335030182,1723779038779,-150.99,0.00010856,2]
[335030183,1723779038789,-151.54817037,0.0001086,2]
[335030184,1723779038798,-150.0,0.00010883,2]
[335030185,1723779038808,-1280.24907943,0.00010889,2]
[335030186,1723779038818,-1500.0,0.00010899,2]
[335030187,1723779038827,-170.57448432,0.000109,2]
[335030188,1723779038836,-170.57448432,0.00010914,2]
[335030189,1723779038846,-1513.01065829,0.00010949,2]
[335030190,1723779038855,-2387.09421634,0.00010949,2]
[335030191,1723779038865,-250.0,0.00010959,2]
[335030192,1723779038875,-153.0,0.00010978,2]
[335030193,1723779038885,-150.0,0.00010979,2]
[335030194,1723779038894,-402.84503134,0.00010979,2]
[335030195,1723779038905,-18668.32004682,0.0001098,2]
[335030196,1723779038915,-265.51830839,0.00010989,2]
[335030197,1723779038925,-1500.0,0.00010991,2]
[335030198,1723779038935,-155.30490981,0.00010993,2]
[335030199,1723779038945,-4997.5113866,0.00010998,2]
[335030200,1723779038955,-298.02467421,0.00010999,2]
[335030201,1723779038964,-51953.33017226,0.00011,2]
[335030202,1723779038974,-135128.40687053,0.00011,2]
[335030203,1723779038983,-3348795.89967941,0.00011,2]
[335030204,1723779038994,-750.78007434,0.00011,2]
[335030205,1723779039004,-2005.84,0.00011,2]
[335030206,1723779039013,-607.0,0.00011,2]
[335030207,1723779039023,-4394013.93821451,0.00011,2]
[335030208,1723779039035,-1395.86784013,0.00011,2]
[335030213,1723779047617,-285.08,0.00010899,2]
[335030215,1723779285996,1002.22480521,0.00024931,60]
[335030217,1723779323095,393.16,8.247e-05,2]
[335030218,1723779398515,5017.66776657,9.996e-05,2]
[335030221,1723779696193,210.0,0.00025,120]
[335030222,1723779745500,182.86,9.868e-05,2]
[335030223,1723779787382,160.0,9.906e-05,2]
[335030224,1723779797587,232.71,9.904e-05,2]
[335030225,1723779841520,373.5,8.219e-05,2]
[335030227,1723779886958,304.33273384,9.962e-05,2]
[335030228,1723779911881,155.16328719,9.962e-05,2]